bitfinex/quotes_ETHUSD_20240721
["timestamp","ask_amount","ask_price","bid_price","bid_amount"]
[1721539917981,0.89437601,3510.7,3510.3,0.07589084]
[1721539918176,0.89437601,3510.7,3510.2,1.5083386]
[1721539918177,0.89437601,3510.6,3510.2,1.5083386]
[1721539918403,0.89437601,3510.6,3510.3,0.07587991]
[1721539918912,0.89437601,3510.6,3510.2,1.5083386]
[1721539919074,0.89437601,3510.6,3510.4,2.35885052]
[1721539919276,0.89437601,3510.6,3510.4,2.283]
[1721539919483,3.74282601,3510.7,3510.5,0.07581921]
[1721539920206,2.84845,3510.7,3510.5,0.07581921]
[1721539922112,3.74282601,3510.7,3510.5,0.07581921]
[1721539922563,3.74282601,3510.7,3510.2,3.126]
[1721539922770,3.74282601,3510.7,3510.3,0.07587153]
[1721539922970,3.74282601,3510.7,3510.2,3.8137545]
[1721539923298,3.74282601,3510.7,3510.3,0.07587153]
[1721539923616,3.74282601,3510.7,3510.2,3.8137545]
[1721539924108,3.74282601,3510.7,3510.3,0.07587346]
[1721539924308,0.89437601,3510.6,3510.3,0.07587346]
[1721539924471,3.74282601,3510.7,3510.3,0.7641173]
[1721539924679,3.74282601,3510.7,3510.4,0.07584473]
[1721539927668,0.89437601,3510.6,3510.4,0.07584473]
[1721539927866,3.74282601,3510.7,3510.4,0.07584473]
[1721539928272,0.89437601,3510.6,3510.4,0.07584473]
[1721539928523,0.89437601,3510.6,3510.4,1.37592853]
[1721539928814,3.74282601,3510.7,3510.4,1.37592853]
[1721539929049,0.89437601,3510.7,3510.4,1.37592853]
[1721539929182,2.84836,3510.8,3510.5,2.2947]
[1721539929710,2.84836,3510.8,3510.6,0.07578275]
[1721539930073,3.74273601,3510.8,3510.6,0.07578275]
[1721539930275,2.84836,3510.8,3510.6,0.07578275]
[1721539930479,3.74256601,3511.0,3510.6,1.15563784]
[1721539930711,3.74256601,3511.0,3510.7,0.07573146]
[1721539931218,0.89437601,3511.0,3510.7,0.07573146]
[1721539931380,0.89437601,3511.0,3510.8,0.843]
[1721539931719,0.89437601,3511.2,3510.9,2.37037271]
[1721539932076,0.89437601,3511.1,3510.9,2.37037271]
[1721539932602,0.89437601,3511.1,3510.9,2.97655998]
[1721539932922,1.48935745,3511.5,3511.0,0.843]
[1721539932923,0.89437601,3511.4,3511.0,0.843]
[1721539933214,0.89437601,3511.4,3511.1,0.07561397]
[1721539934015,0.89437601,3511.5,3511.1,0.07561397]
[1721539934214,0.89437601,3511.5,3511.2,0.843]
[1721539934523,0.89437601,3511.5,3511.3,0.3766794]
[1721539934721,1.19250135,3511.7,3511.3,0.07549729]
[1721539934722,0.89437601,3511.6,3511.3,0.07549729]
[1721539935210,0.89437601,3511.6,3511.2,0.843]
[1721539935412,0.89437601,3511.6,3511.3,0.07549278]
[1721539935776,0.89437601,3511.6,3511.2,0.843]
[1721539935976,0.89437601,3511.5,3511.3,0.07549085]
[1721539936195,0.89437601,3511.5,3511.2,0.843]
[1721539936399,0.89437601,3511.6,3511.2,1.50790226]
[1721539936673,0.89437601,3511.5,3511.3,0.07549085]
[1721539937078,3.74216601,3511.5,3511.0,0.843]
[1721539937303,3.74216601,3511.5,3511.4,0.07545891]
[1721539937513,3.74216601,3511.5,3511.0,0.843]
[1721539937687,3.74216601,3511.5,3511.1,0.37438873]
[1721539937891,3.74216601,3511.5,3511.1,0.44993574]
[1721539940805,2.84779,3511.5,3511.1,0.44993574]
[1721539941310,3.74216601,3511.5,3511.1,0.44993574]
[1721539943580,2.84787,3511.4,3511.1,0.44993574]
[1721539945782,2.84787,3511.4,3511.1,0.07554701]
[1721539949435,5.69604,3511.2,3511.1,0.07554701]
[1721539949748,9.08121601,3511.2,3511.1,0.07554701]
[1721539950025,2.84843,3510.7,3510.6,7.350009]
[1721539950241,2.84843,3510.7,3510.4,3.1934]
[1721539950393,2.84843,3510.7,3510.4,3.51274]
[1721539950790,2.8482,3511.0,3510.0,10.496668]
[1721539950791,2.84852,3510.6,3510.1,2.3504]
[1721539951039,2.84864,3510.5,3510.1,2.3504]
[1721539951991,2.84868,3510.4,3510.0,8.490678]
[1721539952435,2.84852,3510.6,3510.0,8.490678]
[1721539952624,2.84852,3510.6,3510.0,9.8597008]
[1721539952800,2.84861,3510.5,3510.0,9.8597008]
[1721539953148,2.84868,3510.4,3510.0,9.8597008]
[1721539953344,2.84855,3510.6,3510.0,9.8597008]
[1721539954637,2.84855,3510.6,3510.3,2.3504]
[1721539956414,2.84855,3510.6,3510.2,0.843]
[1721539957739,2.84861,3510.5,3510.2,0.843]
[1721539958127,5.33947,3510.4,3510.0,7.647678]
[1721539958314,2.84882,3510.3,3510.0,7.647678]
[1721539961001,2.84882,3510.3,3510.0,0.297669]
[1721539962866,3.74142731,3510.5,3510.0,1.140669]
[1721539962867,2.8486,3510.5,3510.0,1.140669]
[1721539963001,2.84868,3510.4,3510.0,3.8900589]
[1721539965311,2.84868,3510.4,3510.1,0.07589357]
[1721539965710,2.84868,3510.4,3510.0,3.8900589]
[1721539966037,2.84868,3510.4,3510.1,0.07589357]
[1721539966446,2.84868,3510.4,3510.0,3.8900589]
[1721539966679,2.84868,3510.4,3510.2,0.07586418]
[1721539966838,2.84868,3510.4,3510.1,0.07589357]
[1721539967045,2.84868,3510.4,3510.3,0.0758348]
[1721539967227,2.84868,3510.4,3510.2,0.07586418]
[1721539967427,2.84868,3510.4,3510.0,3.491069]
[1721539967628,2.84868,3510.4,3510.1,0.07589357]
[1721539968257,2.84868,3510.4,3510.2,0.07586289]
[1721539968456,3.74140731,3510.6,3510.2,0.07586289]
[1721539968672,2.8486,3510.5,3510.0,3.491069]
[1721539968844,2.8486,3510.5,3510.3,0.07583351]
[1721539969031,2.8486,3510.5,3510.0,3.491069]
[1721539969230,2.8486,3510.5,3510.4,0.07580542]
[1721539969563,2.8486,3510.5,3510.0,3.491069]
[1721539969863,2.8486,3510.5,3510.0,4.1250909]
[1721539970067,2.8486,3510.5,3510.1,0.07589357]
[1721539970428,2.8486,3510.5,3510.0,4.1250909]
[1721539970764,2.8486,3510.5,3510.1,0.07589357]
[1721539971078,2.8486,3510.5,3510.0,4.1250909]
[1721539971358,2.8486,3510.5,3510.2,0.07586418]
[1721539971559,2.8486,3510.5,3510.1,0.07589357]
[1721539971748,2.8486,3510.5,3510.3,0.0758348]
[1721539971952,2.8486,3510.5,3510.2,0.07586418]
[1721539972168,2.8486,3510.5,3510.0,3.491069]
[1721539972169,2.8486,3510.5,3510.4,0.07580542]
[1721539972381,2.8486,3510.5,3510.3,0.0758348]
[1721539972527,2.84844,3510.7,3510.4,0.07580542]
[1721539972956,2.84844,3510.7,3510.2,0.843]
[1721539973151,2.84844,3510.7,3510.5,0.07577603]
[1721539973431,2.84844,3510.7,3510.6,0.07574666]
[1721539973742,2.8483,3510.9,3510.6,0.07574666]
[1721539973947,2.8483,3510.9,3510.4,0.843]
[1721539974187,2.8483,3510.9,3510.7,0.07571728]
[1721539974363,2.8483,3510.9,3510.4,0.843]
[1721539974559,2.8483,3510.9,3510.4,1.56012278]
[1721539974967,2.8483,3510.9,3510.5,0.07577283]
[1721539975489,2.84823,3511.0,3510.5,0.07577283]
[1721539976799,5.21633,3511.1,3510.5,0.07577283]
[1721539976800,2.84813,3511.1,3510.5,0.07577283]
[1721539976951,0.843,3511.4,3510.5,0.07577283]
[1721539976952,2.84826,3511.0,3510.5,0.07577283]
[1721539977147,2.84836,3510.8,3510.5,0.07577283]
[1721539977588,2.84836,3510.8,3510.2,3.9329378]
[1721539977786,2.84836,3510.8,3510.6,0.07574346]
[1721539978088,2.84836,3510.8,3510.7,0.07571408]
[1721539978493,2.84836,3510.8,3510.2,3.9329378]
[1721539978650,2.84836,3510.8,3510.7,0.07571408]
[1721539978848,2.84836,3510.8,3510.2,3.9329378]
[1721539979064,2.84836,3510.8,3510.7,0.07571408]
[1721539979264,2.84836,3510.8,3510.3,1.03178968]
[1721539979466,2.84836,3510.8,3510.7,0.07571408]
[1721539979685,2.84836,3510.8,3510.3,1.03178968]
[1721539979866,2.84836,3510.8,3510.7,0.07571408]
[1721539980186,2.84836,3510.8,3510.3,1.03178968]
[1721539980403,2.84836,3510.8,3510.7,0.07571408]
[1721539980563,2.84836,3510.8,3510.3,1.03178968]
[1721539980766,2.84836,3510.8,3510.7,0.07571408]
[1721539980978,2.84836,3510.8,3510.3,1.03178968]
[1721539981175,2.84836,3510.8,3510.7,0.07571408]
[1721539981678,2.84836,3510.8,3510.3,1.03178968]
[1721539981878,2.84836,3510.8,3510.7,0.07571408]
[1721539982083,2.84836,3510.8,3510.4,0.73600275]
[1721539982257,2.84836,3510.8,3510.7,0.07571408]
[1721539982460,2.84836,3510.8,3510.4,0.73600275]
[1721539982662,2.84836,3510.8,3510.7,0.07571408]
[1721539982963,2.84836,3510.8,3510.4,0.73600275]
[1721539983182,2.84836,3510.8,3510.7,0.07571408]
[1721539983789,2.84828,3510.9,3510.4,0.73600275]
[1721539984297,2.84828,3510.9,3510.5,0.07577283]
[1721539988012,0.89385117,3510.8,3510.5,0.07577283]
[1721539990015,0.89385117,3510.6,3510.5,0.07577283]
[1721539990169,0.89385117,3510.6,3510.2,4.7759378]
[1721539990371,0.89385117,3510.6,3510.3,1.03178968]
[1721539990586,0.89385117,3510.5,3510.3,1.10595011]
[1721539990776,0.89385117,3510.6,3510.3,1.10595011]
[1721539990985,4.04015157,3510.8,3510.3,1.10595011]
[1721539990986,0.89385117,3510.5,3510.3,1.10595011]
[1721539991306,0.89385117,3510.6,3510.3,1.10595011]
[1721539991507,0.89385117,3510.5,3510.3,1.10595011]
[1721539992622,0.89385117,3510.4,3510.3,1.10595011]
[1721539992777,0.89385117,3510.4,3510.3,0.07416043]
[1721539993505,0.89385117,3510.4,3510.2,1.0841078]
[1721539993708,0.89385117,3510.4,3510.3,0.07416043]
[1721539994076,0.89385117,3510.4,3510.2,1.0841078]
[1721539994415,0.89385117,3510.4,3510.3,0.07416043]
[1721539994627,0.89385117,3510.4,3510.2,1.0841078]
[1721539995127,0.89385117,3510.4,3510.3,0.07416043]
[1721539995427,1.19180157,3510.5,3510.3,0.07416043]
[1721539995603,1.19180157,3510.5,3510.4,0.07413105]
[1721539995799,1.19180157,3510.5,3510.2,1.0841078]
[1721539996112,0.89509701,3510.3,3510.2,1.0841078]
[1721539996928,0.89509701,3510.3,3510.0,0.297669]
[1721539997119,0.89509701,3510.2,3510.0,1.140669]
[1721539997427,0.89509701,3510.3,3510.0,1.140669]
[1721539998993,0.89509701,3510.4,3510.2,3.2219]
[1721539999198,1.19180157,3510.5,3510.3,0.6368559]
[1721539999199,0.89509701,3510.5,3510.3,0.6368559]
[1721539999400,0.89509701,3510.6,3510.3,0.6368559]
[1721540000833,0.89509701,3510.6,3510.5,2.3789]
[1721540001037,0.89509701,3510.7,3510.5,3.33452259]
[1721540002743,0.89509701,3510.7,3510.5,0.95562259]
[1721540003042,0.89509701,3510.8,3510.6,3.2219]
[1721540003400,0.89509701,3510.8,3510.6,2.3789]
[1721540004205,2.84859,3510.5,3510.0,0.297669]
[1721540004414,3.74368701,3510.5,3510.0,0.297669]
[1721540004640,3.74385701,3510.3,3510.0,0.297669]
[1721540004836,0.89509701,3510.2,3510.0,0.297669]
[1721540006471,2.84892,3510.1,3510.0,0.297669]
[1721540006610,3.74401701,3510.1,3510.0,0.297669]
[1721540010249,2.84892,3510.1,3510.0,0.297669]
[1721540010407,3.7434817,3510.1,3510.0,0.37192145]
[1721540016348,3.743105,3510.1,3510.0,0.37192145]
[1721540017029,3.74307672,3510.1,3510.0,0.37192145]
[1721540017229,2.84892,3510.1,3510.0,0.37192145]
[1721540017428,3.7430828,3510.1,3510.0,0.37192145]
[1721540019070,2.84892,3510.1,3510.0,0.37192145]
[1721540019487,3.74294248,3510.1,3510.0,0.37192145]
[1721540019986,2.84892,3510.1,3510.0,0.37192145]
[1721540020287,3.74281248,3510.3,3510.0,0.37192145]
[1721540022890,3.30182248,3510.2,3510.0,0.37192145]
[1721540023095,3.74296608,3510.1,3510.0,0.37192145]
[1721540023601,2.84892,3510.1,3510.0,0.37192145]
[1721540023952,3.74288678,3510.1,3510.0,0.37192145]
[1721540024347,2.84892,3510.1,3510.0,0.37192145]
[1721540024654,3.74287816,3510.1,3510.0,0.37192145]
[1721540025364,2.84892,3510.1,3510.0,0.37192145]
[1721540025565,3.74284412,3510.1,3510.0,0.37192145]
[1721540033581,2.84892,3510.1,3510.0,0.37192145]
[1721540034795,3.74294471,3510.1,3510.0,0.37192145]
[1721540035700,2.84892,3510.1,3510.0,0.37192145]
[1721540036001,3.74294471,3510.1,3510.0,0.37192145]
[1721540036374,2.84892,3510.1,3510.0,0.37192145]
[1721540036574,3.74294471,3510.1,3510.0,0.37192145]
[1721540038604,2.84892,3510.1,3510.0,0.37192145]
[1721540039022,13.02923519,3510.1,3510.0,0.37192145]
[1721540039169,10.99946,3510.1,3510.0,0.37192145]
[1721540039372,15.78772952,3510.1,3510.0,0.297669]
[1721540039591,14.84246,3510.1,3510.0,0.297669]
[1721540039798,16.82021844,3510.1,3510.0,0.297669]
[1721540040821,17.37021844,3510.1,3510.0,0.297669]
[1721540042727,13.12829844,3510.1,3510.0,0.297669]
[1721540044014,14.61730921,3510.1,3510.0,0.297669]
[1721540044218,7.33793077,3510.1,3510.0,0.297669]
[1721540044373,4.04017387,3510.1,3510.0,0.297669]
[1721540044578,3.74237779,3510.1,3510.0,0.37206335]
[1721540046286,2.84892,3510.1,3510.0,0.37206335]
[1721540046782,2.84876,3510.3,3510.0,0.37206335]
[1721540046783,0.89345779,3510.3,3510.0,0.37206335]
[1721540046977,0.89345779,3510.3,3510.0,2.83586335]
[1721540047202,0.89345779,3510.4,3510.0,2.83586335]
[1721540047402,0.89345779,3510.4,3510.1,0.36788634]
[1721540047612,0.89345779,3510.3,3510.1,0.44224099]
[1721540047813,0.89345779,3510.4,3510.1,0.44224099]
[1721540048018,0.89345779,3510.3,3510.1,0.44224099]
[1721540048721,0.89345779,3510.4,3510.1,0.44224099]
[1721540049011,0.89345779,3510.4,3510.2,0.320371]
[1721540049452,0.89345779,3510.3,3510.2,0.320371]
[1721540050408,4.03994387,3510.4,3510.2,0.320371]
[1721540051754,0.89455464,3510.3,3510.2,0.320371]
[1721540052264,0.89455464,3510.5,3510.2,0.320371]
[1721540052545,0.89455464,3510.5,3510.3,0.677374]
[1721540055241,0.89455464,3510.5,3510.4,0.07416596]
[1721540055443,0.89455464,3510.6,3510.4,0.07416596]
[1721540056312,0.89455464,3510.5,3510.4,0.07416596]
[1721540056615,1.19125387,3510.6,3510.4,0.07416596]
[1721540056847,1.19125387,3510.6,3510.0,0.297669]
[1721540057043,0.89430921,3510.4,3510.0,0.297669]
[1721540057960,0.89430921,3510.3,3510.0,0.297669]
[1721540058122,2.84891,3510.2,3510.0,0.297669]
[1721540058443,3.74321921,3510.2,3510.0,0.297669]
[1721540059330,2.84892,3510.1,3510.0,0.297669]
[1721540061164,0.89430921,3510.2,3510.0,0.297669]
[1721540061371,4.04001387,3510.3,3510.0,0.297669]
[1721540061372,3.74306921,3510.3,3510.0,0.297669]
[1721540061544,2.84876,3510.3,3510.0,0.297669]
[1721540062160,2.84884,3510.2,3510.0,0.297669]
[1721540062681,2.84884,3510.2,3510.0,2.676469]
[1721540062838,3.74302921,3510.4,3510.0,2.676469]
[1721540063729,2.84878,3510.3,3510.0,2.676469]
[1721540070276,2.84878,3510.3,3510.1,0.07425733]
[1721540070642,2.84878,3510.3,3510.0,2.676469]
[1721540070890,2.84878,3510.3,3510.2,0.07422794]
[1721540071052,2.84878,3510.3,3510.1,0.07425733]
[1721540071254,2.84878,3510.3,3510.0,2.676469]
[1721540071555,2.84878,3510.3,3510.1,0.07425733]
[1721540071758,3.74290921,3510.5,3510.0,2.676469]
[1721540071976,0.89430921,3510.4,3510.2,0.07422794]
[1721540072153,0.89430921,3510.4,3510.0,2.676469]
[1721540072357,3.74290921,3510.5,3510.1,0.07425733]
[1721540072672,3.74290921,3510.5,3510.0,2.676469]
[1721540072883,3.74290921,3510.5,3510.2,0.07422794]
[1721540073069,3.74290921,3510.5,3510.1,0.07425733]
[1721540073251,3.74290921,3510.5,3510.3,0.07419856]
[1721540073458,0.89430921,3510.5,3510.0,2.676469]
[1721540073656,0.89430921,3510.5,3510.4,0.07416918]
[1721540073892,0.89430921,3510.5,3510.0,2.676469]
[1721540073893,0.89430921,3510.6,3510.0,2.676469]
[1721540074101,0.89430921,3510.6,3510.4,0.07415308]
[1721540074258,0.89430921,3510.6,3510.0,2.676469]
[1721540074459,0.89430921,3510.6,3510.5,0.0741237]
[1721540074672,0.89430921,3510.6,3510.0,2.676469]
[1721540074893,0.89430921,3510.6,3510.5,0.0741237]
[1721540075072,0.89430921,3510.6,3510.0,2.676469]
[1721540075268,0.89430921,3510.6,3510.5,0.0741237]
[1721540075625,0.89430921,3510.6,3510.1,2.84891]
[1721540075891,0.89430921,3510.6,3510.5,0.0741237]
[1721540076097,0.89430921,3510.6,3510.1,2.84891]
[1721540076608,0.89430921,3510.6,3510.2,0.07421184]
[1721540077180,3.74282921,3510.6,3510.2,0.07421184]
[1721540077380,3.74282921,3510.6,3510.0,2.676469]
[1721540077582,3.74282921,3510.6,3510.3,0.07418246]
[1721540077855,3.74282921,3510.6,3510.0,2.676469]
[1721540078059,3.74282921,3510.6,3510.4,0.07415308]
[1721540078282,3.74282921,3510.6,3510.0,5.525449]
[1721540078483,3.74282921,3510.6,3510.5,0.0741237]
[1721540078687,3.74282921,3510.6,3510.0,5.525449]
[1721540078882,3.74282921,3510.6,3510.5,0.0741237]
[1721540079073,3.74282921,3510.6,3510.0,5.525449]
[1721540079260,3.74282921,3510.6,3510.5,0.0741237]
[1721540079472,3.74282921,3510.6,3510.0,5.525449]
[1721540079673,3.74282921,3510.6,3510.1,0.9217599]
[1721540079884,3.74282921,3510.6,3510.1,0.99600113]
[1721540080877,2.84852,3510.6,3510.1,0.99600113]
[1721540081087,3.74282921,3510.6,3510.1,0.99600113]
[1721540081909,3.74282921,3510.6,3510.1,0.07424123]
[1721540082282,0.89430921,3510.5,3510.0,2.676469]
[1721540082482,0.89430921,3510.5,3510.2,0.07421184]
[1721540082716,2.84859,3510.5,3510.1,0.07424123]
[1721540082918,2.84867,3510.4,3510.3,0.07418246]
[1721540083215,2.84875,3510.3,3510.0,0.297669]
[1721540083415,3.74290921,3510.5,3510.0,0.297669]
[1721540083416,2.84886,3510.2,3510.0,0.297669]
[1721540084814,2.84876,3510.3,3510.0,0.297669]
[1721540085208,2.84876,3510.3,3510.1,0.07423543]
[1721540085379,2.84876,3510.3,3510.0,0.297669]
[1721540085579,2.84876,3510.3,3510.2,0.07420605]
[1721540085787,0.89430921,3510.4,3510.0,0.297669]
[1721540086111,3.74281921,3510.6,3510.2,0.07420605]
[1721540086318,3.74281921,3510.6,3510.1,0.07424382]
[1721540086482,3.74281921,3510.6,3510.3,0.07418505]
[1721540086682,3.74281921,3510.6,3510.2,0.07421443]
[1721540086889,3.74281921,3510.6,3510.4,0.07415567]
[1721540087091,0.89430921,3510.7,3510.4,2.4202]
[1721540087405,0.89430921,3510.6,3510.5,0.07412629]
[1721540088553,1.19125387,3510.7,3510.5,0.07412629]
[1721540089432,1.19125387,3510.6,3510.5,0.07412629]
[1721540092331,4.3401583,3510.8,3510.5,0.07412629]
[1721540092332,1.4918083,3510.7,3510.5,0.07412629]
[1721540092813,1.49263356,3510.7,3510.5,0.07412629]
[1721540093018,1.49263356,3510.7,3510.2,2.3082]
[1721540093235,1.19411888,3510.5,3510.3,0.6297849]
[1721540094833,0.89561045,3510.4,3510.3,0.6297849]
[1721540096803,1.19411888,3510.5,3510.3,0.6297849]
[1721540096998,1.19411888,3510.5,3510.2,2.3082]
[1721540097336,0.89560835,3510.3,3510.2,2.3082]
[1721540098335,0.89560835,3510.4,3510.2,2.3082]
[1721540099306,0.89560835,3510.3,3510.2,2.3082]
[1721540099932,0.89560835,3510.4,3510.2,2.3082]
[1721540100240,0.89560835,3510.3,3510.2,2.3082]
[1721540100611,0.89560835,3510.3,3510.0,0.297669]
[1721540101133,0.89560835,3510.2,3510.0,0.297669]
[1721540102440,0.89560835,3510.3,3510.0,0.297669]
[1721540104196,1.19411888,3510.4,3510.0,0.297669]
[1721540104197,0.89560835,3510.2,3510.0,0.297669]
[1721540107831,0.89560835,3510.2,3510.1,0.843]
[1721540108141,1.19411888,3510.4,3510.1,3.69192]
[1721540108142,0.89560835,3510.4,3510.1,3.69192]
[1721540108427,0.89560835,3510.4,3510.2,0.9123269]
[1721540108639,1.19411888,3510.6,3510.4,2.84867]
[1721540108847,1.19411888,3510.6,3510.0,0.297669]
[1721540108848,0.89594137,3510.7,3510.6,2.84851]
[1721540109002,1.19411888,3510.9,3510.7,2.84843]
[1721540109203,1.49312313,3511.1,3510.8,0.843]
[1721540109204,1.19411888,3511.0,3510.8,0.843]
[1721540109448,1.19411888,3511.0,3510.8,3.69135]
[1721540109449,0.89576919,3510.9,3510.8,3.69135]
[1721540109643,0.89576919,3510.9,3510.8,6.12845]
[1721540110130,0.89576919,3511.1,3510.8,6.12845]
[1721540110337,0.89576919,3511.0,3510.8,6.12845]
[1721540110537,0.89576919,3511.1,3510.8,6.12845]
[1721540111317,0.89576919,3511.0,3510.8,6.12845]
[1721540113349,0.89576919,3511.2,3510.8,7.026154]
[1721540115244,0.89576919,3511.2,3511.0,0.843]
[1721540115559,0.89576919,3511.2,3510.9,2.92218728]
[1721540115758,0.89576919,3511.2,3511.1,0.07387854]
[1721540115962,0.89576919,3511.2,3511.0,0.07390405]
[1721540116260,0.89576919,3511.2,3510.9,2.84825]
[1721540116261,0.89576919,3511.3,3511.1,0.07387468]
[1721540116422,0.89576919,3511.3,3510.9,2.84825]
[1721540116622,0.89576919,3511.3,3511.2,0.07384531]
[1721540116825,0.89576919,3511.3,3510.9,2.84825]
[1721540117061,0.89576919,3511.3,3511.2,0.07384531]
[1721540117247,0.89576919,3511.3,3510.9,2.84825]
[1721540117450,0.89576919,3511.3,3511.2,0.07384531]
[1721540117756,0.89576919,3511.3,3510.9,2.84825]
[1721540117966,0.89576919,3511.3,3511.2,0.07384531]
[1721540118136,0.89576919,3511.3,3510.9,2.84825]
[1721540118351,0.89576919,3511.3,3511.2,0.07384531]
[1721540118854,0.89576919,3511.3,3510.9,2.84825]
[1721540119166,0.89576919,3511.3,3511.2,0.07384531]
[1721540119370,0.89576919,3511.3,3510.9,2.84825]
[1721540119568,0.89576919,3511.3,3511.2,0.07384531]
[1721540119780,0.89576919,3511.3,3510.9,2.84825]
[1721540120078,0.89576919,3511.3,3511.2,0.07384531]
[1721540120287,0.89576919,3511.3,3510.9,2.84825]
[1721540120583,0.89576919,3511.3,3511.2,0.07384531]
[1721540120749,0.89576919,3511.3,3510.9,2.84825]
[1721540120949,0.89576919,3511.3,3511.2,0.07384531]
[1721540121150,0.89576919,3511.3,3510.9,2.84825]
[1721540121351,0.89576919,3511.3,3511.2,0.07380798]
[1721540121553,0.89576919,3511.3,3510.9,2.84825]
[1721540121748,4.04194888,3511.5,3511.2,0.07380798]
[1721540121749,0.89576919,3511.4,3511.2,0.07380798]
[1721540121950,0.89576919,3511.4,3510.9,2.84825]
[1721540122176,0.89576919,3511.4,3511.3,0.07377861]
[1721540122362,0.89576919,3511.4,3510.9,2.84825]
[1721540122566,0.89576919,3511.4,3511.3,0.07377861]
[1721540122741,0.89576919,3511.4,3510.9,2.84825]
[1721540122943,0.89576919,3511.4,3511.3,0.07377861]
[1721540123459,0.89576919,3511.4,3510.9,2.84825]
[1721540123663,0.89576919,3511.4,3511.3,0.07377861]
[1721540123900,0.89576919,3511.4,3510.9,2.84825]
[1721540124199,0.89576919,3511.4,3511.3,0.07377861]
[1721540124359,0.89576919,3511.4,3510.9,2.84825]
[1721540124541,0.89576919,3511.4,3511.0,0.07386672]
[1721540125072,3.74359919,3511.5,3511.1,0.07383735]
[1721540125246,3.74359919,3511.5,3510.9,2.84825]
[1721540125447,3.74359919,3511.5,3511.2,0.07380798]
[1721540125660,3.74359919,3511.5,3510.9,2.84825]
[1721540126196,3.74359919,3511.5,3511.0,0.07386672]
[1721540126540,3.74359919,3511.5,3510.9,2.84825]
[1721540126772,0.89576919,3511.5,3511.1,0.07383735]
[1721540126987,0.89576919,3511.5,3511.0,0.07386672]
[1721540127148,0.89576919,3511.5,3511.2,0.07380798]
[1721540127349,0.89576919,3511.5,3510.9,2.84825]
[1721540127350,0.89576919,3511.5,3511.1,2.92191735]
[1721540127678,0.89576919,3511.5,3511.2,0.07380798]
[1721540127886,0.89576919,3511.5,3511.1,3.46828174]
[1721540128047,0.89576919,3511.5,3511.3,0.07377861]
[1721540128260,0.89576919,3511.6,3511.1,3.46828174]
[1721540128800,0.89576919,3511.6,3511.2,0.07380798]
[1721540129005,0.89576919,3511.6,3511.1,3.46828174]
[1721540129167,0.89576919,3511.6,3511.3,0.07377861]
[1721540129504,0.89576919,3511.6,3511.1,2.84808]
[1721540129712,0.89576919,3511.6,3511.4,0.07374925]
[1721540129867,0.89576919,3511.6,3511.1,2.84808]
[1721540130068,0.89576919,3511.6,3511.5,0.07371988]
[1721540130414,1.19411888,3511.7,3511.5,0.07371988]
[1721540130569,1.19411888,3511.7,3511.1,2.84808]
[1721540130794,0.89431075,3511.5,3511.2,0.07380798]
[1721540130999,0.89431075,3511.5,3511.1,2.84808]
[1721540131193,0.89431075,3511.5,3511.2,0.07380798]
[1721540131392,0.89431075,3511.5,3511.1,2.84808]
[1721540131592,0.89431075,3511.5,3511.2,0.07380798]
[1721540131817,0.89431075,3511.5,3511.1,2.84808]
[1721540132036,0.89431075,3511.5,3511.3,0.07377861]
[1721540132226,0.89431075,3511.5,3511.0,2.84818]
[1721540132427,0.89431075,3511.5,3511.4,0.07374925]
[1721540132733,0.89431075,3511.5,3511.0,2.84818]
[1721540133239,0.89431075,3511.6,3511.1,0.07383735]
[1721540133742,0.89431075,3511.5,3511.1,0.07383735]
[1721540134512,0.89431075,3511.6,3511.1,0.07383735]
[1721540135494,0.89431075,3511.5,3511.1,0.07383735]
[1721540135947,0.89431075,3511.6,3511.1,0.07383735]
[1721540136549,0.89431075,3511.5,3511.1,0.07383735]
[1721540137219,0.89431075,3511.6,3511.1,0.07383735]
[1721540137722,0.89431075,3511.5,3511.1,0.07383735]
[1721540138248,0.89431075,3511.4,3511.2,0.07379768]
[1721540138450,0.89431075,3511.4,3510.9,2.84825]
[1721540138624,4.04182888,3511.6,3511.3,0.07376831]
[1721540138625,0.89431075,3511.5,3511.3,0.07376831]
[1721540138826,0.89431075,3511.5,3510.9,2.84825]
[1721540139154,0.89431075,3511.4,3510.9,2.84825]
[1721540140830,3.16611075,3511.3,3510.9,2.84825]
[1721540141346,3.16611075,3511.3,3510.9,3.502218]
[1721540141543,0.89431075,3511.3,3510.9,3.502218]
[1721540141746,0.89431075,3511.3,3510.5,5.11337]
[1721540141944,0.89431075,3511.2,3510.5,5.11337]
[1721540142148,0.89431075,3511.2,3510.6,2.8485]
[1721540143491,0.89431075,3511.2,3510.7,2.2648]
[1721540143791,2.848,3511.3,3510.7,2.2648]
[1721540143792,0.89431075,3511.3,3510.7,2.2648]
[1721540143953,0.89431075,3511.4,3510.8,0.59563]
[1721540144158,0.89431075,3511.4,3510.8,3.44398]
[1721540144561,0.89431075,3511.4,3510.9,0.07387356]
[1721540145471,0.89431075,3511.3,3510.9,0.07387356]
[1721540145668,0.89431075,3511.3,3510.9,1.02128892]
[1721540145873,0.89431075,3511.4,3510.9,1.02128892]
[1721540147383,0.89431075,3511.3,3510.9,1.02128892]
[1721540149800,0.89431075,3511.3,3510.9,3.86953892]
[1721540149953,0.89431075,3511.3,3511.0,0.75729689]
[1721540150385,0.89431075,3511.3,3511.1,0.07381418]
[1721540151202,0.89431075,3511.2,3511.1,0.07381418]
[1721540153251,1.19411888,3511.3,3511.1,0.07381418]
[1721540153451,1.19411888,3511.2,3511.1,0.07381418]
[1721540153689,1.19411888,3511.2,3510.9,2.84825]
[1721540153867,0.89636115,3511.0,3510.9,3.728705]
[1721540160411,0.89636115,3511.0,3510.9,3.80257792]
[1721540160611,1.19411888,3511.1,3510.9,0.07387292]
[1721540160918,1.19411888,3511.1,3510.8,2.84834]
[1721540161213,1.19411888,3511.1,3511.0,0.07383647]
[1721540161385,1.19411888,3511.1,3510.9,0.07386584]
[1721540161590,1.19411888,3511.1,3511.0,0.07383711]
[1721540162137,1.19411888,3511.1,3511.0,0.07383775]
[1721540162314,1.19411888,3511.1,3510.8,2.84834]
[1721540162518,0.89702474,3510.9,3510.8,2.84834]
[1721540162819,0.89702474,3510.9,3510.8,3.728805]
[1721540163193,0.89702474,3511.0,3510.8,3.728805]
[1721540163400,0.89702474,3510.9,3510.8,3.728805]
[1721540164222,0.89702474,3511.0,3510.8,3.728805]
[1721540164883,0.89702474,3510.9,3510.8,3.728805]
[1721540170250,0.89702474,3510.9,3510.6,2.84851]
[1721540170541,0.89702474,3510.9,3510.7,2.8484]
[1721540174056,0.89702474,3510.9,3510.6,3.69151]